bitfinex/quotes_ETHUSD_20241215
["timestamp","ask_amount","ask_price","bid_price","bid_amount"]
[1734269368557,0.1639805,3889.2,3889.0,0.7887]
[1734269371657,0.1639805,3889.2,3889.1,0.02440426]
[1734269372062,0.1639805,3889.2,3889.0,0.7887]
[1734269372358,0.1639805,3889.2,3889.1,0.02429462]
[1734269372677,0.1639805,3889.2,3889.0,0.7887]
[1734269372827,0.1639805,3889.2,3889.1,0.02431255]
[1734269373024,0.1639805,3889.2,3889.0,0.7887]
[1734269373251,0.1639805,3889.2,3889.1,0.02431255]
[1734269373619,0.1639805,3889.2,3889.0,0.7887]
[1734269373819,0.1639805,3889.2,3889.1,0.02418976]
[1734269374135,0.1639805,3889.2,3889.0,0.7887]
[1734269374334,0.1639805,3889.2,3889.1,0.02410873]
[1734269374740,0.1639805,3889.2,3888.7,0.7701]
[1734269375278,0.1639805,3889.2,3888.8,0.02424697]
[1734269375645,0.1639805,3889.2,3888.7,0.7701]
[1734269375818,0.1639805,3889.2,3888.9,0.02420089]
[1734269376025,0.1639805,3889.2,3888.7,0.7701]
[1734269376226,0.1639805,3889.2,3888.8,0.02424697]
[1734269376472,0.1639805,3889.2,3888.7,0.7701]
[1734269376674,0.1639805,3889.2,3888.9,0.02420089]
[1734269376875,0.1639805,3889.2,3888.0,1.7437466]
[1734269376876,2.57142,3888.9,3888.8,0.02457847]
[1734269377184,2.57167,3888.6,3888.0,0.7701]
[1734269377523,2.57167,3888.6,3888.1,0.02411359]
[1734269378071,2.57167,3888.6,3888.0,0.7701]
[1734269378435,2.57167,3888.6,3888.1,0.02442344]
[1734269378824,1.62745362,3888.8,3888.0,0.7701]
[1734269379166,2.57168,3888.5,3888.1,0.02442344]
[1734269379372,2.57168,3888.5,3888.0,0.7701]
[1734269379683,2.57168,3888.5,3888.1,0.02442344]
[1734269379971,2.57168,3888.5,3888.0,0.7701]
[1734269380175,2.57168,3888.5,3888.1,0.02442344]
[1734269380386,1.62745362,3888.8,3888.0,0.7701]
[1734269380536,2.57167,3888.6,3888.1,0.02442344]
[1734269380734,2.57168,3888.5,3888.0,0.7701]
[1734269380935,2.57186,3888.3,3888.0,0.7701]
[1734269381229,0.55,3888.6,3888.0,0.7701]
[1734269381230,2.57194,3888.2,3888.0,0.7701]
[1734269381433,2.57194,3888.2,3887.4,0.7701]
[1734269381662,2.57194,3888.2,3887.5,0.26082487]
[1734269382258,2.57199,3888.1,3887.5,0.02515176]
[1734269382457,0.8164,3888.3,3887.5,0.02515176]
[1734269382967,3.38825,3888.3,3887.5,0.02515176]
[1734269383175,2.57216,3887.8,3887.5,0.02515176]
[1734269383562,0.55,3888.2,3887.5,0.02515176]
[1734269383563,2.57228,3887.6,3887.5,0.02515176]
[1734269383767,3.38868,3887.6,3887.5,0.02515176]
[1734269383969,0.8164,3887.6,3886.9,0.7701]
[1734269384202,0.8164,3887.6,3887.0,0.02388771]
[1734269384203,2.57249,3887.3,3887.0,0.02388771]
[1734269384507,0.55,3887.4,3886.9,0.7701]
[1734269384709,0.55,3887.4,3887.1,0.0244507]
[1734269384867,0.55,3887.4,3886.9,0.7701]
[1734269385208,3.1225,3887.3,3886.9,0.7701]
[1734269385420,2.57261,3887.1,3886.4,0.7701]
[1734269385623,0.8164,3887.6,3886.5,0.91488209]
[1734269385826,0.55,3887.5,3886.6,0.7701]
[1734269386126,1.89385362,3887.8,3886.7,0.02476582]
[1734269386127,0.55,3887.7,3886.7,0.02476582]
[1734269386484,0.8164,3887.0,3886.7,0.02476582]
[1734269386685,3.43556664,3886.9,3886.7,0.02476582]
[1734269386926,2.57295,3886.6,3886.0,0.7701]
[1734269387314,3.43558664,3886.9,3886.1,0.02453643]
[1734269387509,3.43558664,3886.9,3886.0,0.7701]
[1734269387810,3.43558664,3886.9,3886.1,0.02450049]
[1734269387995,0.55,3886.9,3886.0,0.7701]
[1734269388329,0.8164,3887.0,3886.0,0.7701]
[1734269388824,0.8164,3887.0,3886.1,0.02475801]
[1734269389887,0.55,3886.7,3886.1,0.02475801]
[1734269390230,0.55,3886.5,3886.1,0.02475801]
[1734269390399,0.55,3886.5,3885.5,0.7701]
[1734269390607,0.55,3886.5,3885.6,0.02494122]
[1734269390839,0.55,3886.5,3885.6,0.4128045]
[1734269390995,2.57307,3886.4,3885.6,0.02494122]
[1734269391330,2.57307,3886.4,3885.7,0.7701]
[1734269391730,2.57307,3886.4,3885.8,0.02486681]
[1734269391905,0.55,3886.5,3885.8,0.02486681]
[1734269392104,0.55,3886.5,3885.7,0.7701]
[1734269392493,0.55,3886.5,3885.8,0.02486681]
[1734269394325,0.8164,3886.6,3885.8,0.02486681]
[1734269394503,0.55,3886.8,3885.8,0.02486681]
[1734269394832,0.55,3886.8,3885.9,0.02482064]
[1734269395012,0.55,3886.8,3885.7,0.7701]
[1734269395207,0.55,3886.8,3885.8,0.02486681]
[1734269398596,0.55,3886.8,3885.9,0.815]
[1734269398798,0.55,3887.0,3885.9,0.815]
[1734269398950,0.55,3887.0,3886.0,0.02514171]
[1734269399297,0.55,3887.0,3886.1,0.815]
[1734269399598,0.55,3887.1,3886.2,0.02504938]
[1734269401655,3.12263,3887.1,3886.2,0.02504938]
[1734269401861,2.57276,3886.9,3886.2,0.02504938]
[1734269403468,0.55,3886.9,3886.2,0.02504938]
[1734269403676,0.55,3886.3,3886.2,0.02504938]
[1734269403889,0.862308,3886.3,3886.2,0.02504938]
[1734269404099,1.624908,3886.3,3886.2,0.02504938]
[1734269405364,0.55,3886.6,3886.2,0.02504938]
[1734269405594,1.3126,3886.6,3886.2,0.02504938]
[1734269405795,0.55,3886.3,3886.2,0.02504938]
[1734269406585,0.7626,3886.6,3886.2,0.02504938]
[1734269406586,0.55,3886.6,3886.2,0.02504938]
[1734269406856,2.57282,3886.8,3886.3,0.815]
[1734269407067,3.12288,3886.7,3886.3,0.815]
[1734269407992,0.55,3886.9,3886.3,0.815]
[1734269408572,0.55,3886.9,3886.2,0.02504938]
[1734269408573,5.57314,3886.3,3886.2,0.02504938]
[1734269408809,6.12314,3886.3,3886.2,0.02504938]
[1734269409476,6.88574,3886.3,3886.2,9.38e-06]
[1734269410297,7.38907463,3886.3,3886.2,9.38e-06]
[1734269416321,7.38907463,3886.3,3884.8,0.815]
[1734269416322,0.8216,3886.1,3884.8,0.815]
[1734269416485,3.55,3886.2,3884.8,0.815]
[1734269416486,2.57401,3885.0,3884.8,0.815]
[1734269416892,0.8216,3885.4,3884.5,0.7946]
[1734269416893,3.12409,3884.9,3884.5,0.7946]
[1734269417110,0.55,3884.7,3884.5,0.7946]
[1734269418846,3.1242,3884.7,3884.5,0.7946]
[1734269419144,3.1242,3884.7,3884.2,0.7946]
[1734269419301,0.55,3884.7,3884.2,0.7946]
[1734269419703,3.91206733,3885.4,3884.2,0.7946]
[1734269419704,0.8216,3885.4,3884.2,0.7946]
[1734269419883,3.12381,3885.3,3884.2,0.7946]
[1734269420389,3.12381,3885.3,3884.3,0.02453976]
[1734269421836,0.55,3885.0,3884.3,0.02453976]
[1734269422020,0.99654848,3885.3,3884.2,0.7946]
[1734269422021,2.57414,3884.8,3884.2,0.7946]
[1734269422185,0.55,3884.7,3884.2,0.7946]
[1734269423327,0.55,3884.7,3883.4,0.7946]
[1734269423328,2.57441,3884.4,3883.4,0.7946]
[1734269423683,0.55,3884.3,3883.5,0.02374008]
[1734269424458,0.55,3884.7,3883.7,0.7769]
[1734269424658,0.55,3884.5,3883.8,0.02360141]
[1734269425156,0.55,3884.7,3883.8,0.02360141]
[1734269425464,2.57434,3884.5,3883.8,0.02360141]
[1734269425763,3.12476,3883.9,3883.3,0.2496]
[1734269425908,0.55,3883.7,3883.3,0.2496]
[1734269426254,0.917481,3883.7,3883.3,0.2496]
[1734269427216,0.55,3884.0,3883.3,0.2496]
[1734269428546,0.55,3884.0,3883.4,0.02406554]
[1734269429212,5.57447,3884.3,3883.5,0.7769]
[1734269429213,0.55,3884.3,3883.5,0.7769]
[1734269429622,0.55,3884.3,3883.6,0.02345697]
[1734269431466,0.55,3884.4,3883.6,0.02345697]
[1734269431672,2.574,3885.0,3883.7,0.7769]
[1734269432089,0.257383,3885.2,3883.7,0.7769]
[1734269432403,0.8144,3885.3,3883.7,0.7769]
[1734269432520,0.8144,3885.3,3883.8,0.02388504]
[1734269432521,2.57411,3884.9,3883.8,0.02388504]
[1734269432951,0.55,3885.0,3883.8,0.02388504]
[1734269433187,0.55,3884.7,3883.8,0.02388504]
[1734269433726,0.55,3885.0,3883.8,0.02388504]
[1734269434056,3.124,3885.0,3883.8,0.02388504]
[1734269434263,0.55,3884.8,3883.8,0.02388504]
[1734269436759,0.55,3884.7,3883.8,0.02388504]
[1734269437346,2.57441,3884.4,3883.8,0.02388504]
[1734269437543,3.12447,3884.3,3883.8,0.02388504]
[1734269437740,0.55,3884.4,3883.7,0.7769]
[1734269437941,3.55,3884.4,3883.7,0.7769]
[1734269438185,0.55,3884.1,3883.4,0.8271]
[1734269438549,0.55,3884.1,3883.5,0.02358683]
[1734269439509,3.12464,3884.1,3883.5,0.02358683]
[1734269439851,3.12464,3884.1,3883.4,0.8271]
[1734269440443,0.55,3884.1,3883.5,0.02385431]
[1734269440812,0.41,3884.3,3883.5,0.02385431]
[1734269440813,0.23976639,3884.0,3883.5,0.02385431]
[1734269441090,0.23976639,3883.9,3883.5,0.02385431]
[1734269441258,0.23976639,3883.8,3883.5,0.02385431]
[1734269441445,0.23976639,3883.7,3883.5,0.02385431]
[1734269441756,0.23976639,3883.6,3883.5,0.02385431]
[1734269442250,2.57466,3884.0,3883.5,0.02385431]
[1734269442251,0.55,3883.9,3883.5,0.02385431]
[1734269442452,0.63143656,3883.8,3883.4,0.8271]
[1734269442688,0.23972056,3883.7,3883.4,0.8271]
[1734269442886,0.55,3883.9,3883.4,0.8271]
[1734269442887,0.23972056,3883.6,3883.4,0.8271]
[1734269443090,0.23972056,3883.5,3883.4,0.8271]
[1734269443438,0.55,3883.9,3883.3,0.2496]
[1734269443439,2.57495,3883.6,3883.3,0.2496]
[1734269443588,0.23958824,3883.5,3883.3,0.2496]
[1734269443757,0.27144206,3883.4,3882.9,0.754]
[1734269443957,0.23958824,3883.3,3882.9,0.754]
[1734269444177,0.23958824,3883.2,3882.9,0.754]
[1734269444360,0.23958824,3883.1,3882.9,0.754]
[1734269444694,0.7755,3883.5,3882.1,0.754]
[1734269444695,0.78958824,3883.0,3882.1,0.754]
[1734269444850,0.55,3882.8,3882.1,0.754]
[1734269445189,0.23958824,3882.7,3882.1,1.087003]
[1734269445354,0.23958824,3882.6,3882.1,0.754]
[1734269445553,0.7755,3883.5,3882.1,0.754]
[1734269445554,0.55,3882.9,3882.1,0.754]
[1734269445970,0.23955408,3882.8,3882.1,0.754]
[1734269446165,0.23955408,3882.7,3882.1,0.754]
[1734269446368,0.23955408,3882.6,3882.1,0.754]
[1734269446570,0.23955408,3882.6,3882.1,1.087003]
[1734269446801,0.55,3883.0,3882.1,0.754]
[1734269446986,0.23937911,3882.9,3882.1,0.754]
[1734269447197,0.23937911,3882.8,3882.1,0.754]
[1734269447402,0.23937911,3882.7,3882.1,0.754]
[1734269447603,0.23937911,3882.6,3882.1,0.754]
[1734269447773,0.23937911,3882.5,3882.1,0.754]
[1734269447973,0.55,3883.2,3882.3,0.754]
[1734269448304,0.23933412,3883.1,3882.3,0.754]
[1734269448512,0.23933412,3883.0,3882.3,0.754]
[1734269449000,0.7755,3883.5,3882.3,0.754]
[1734269449001,0.23933412,3882.9,3882.3,0.754]
[1734269449197,0.23933412,3882.8,3882.5,0.754]
[1734269449395,0.7755,3883.5,3882.5,0.754]
[1734269449396,0.55,3883.5,3882.5,0.754]
[1734269449569,0.55,3883.3,3882.5,0.754]
[1734269449771,0.2393955,3883.2,3882.5,0.754]
[1734269450099,0.2393955,3883.1,3882.6,0.02384426]
[1734269450417,0.2393955,3883.0,3882.7,0.754]
[1734269450712,3.0,3884.0,3882.8,0.754]
[1734269450945,0.23956778,3883.9,3882.8,0.77775178]
[1734269451072,0.23956778,3883.8,3882.8,0.77775178]
[1734269451408,3.23956778,3883.7,3882.8,0.77775178]
[1734269451599,0.7755,3884.1,3882.8,0.77775178]
[1734269451600,0.23956778,3883.6,3882.8,0.77775178]
[1734269451796,0.23956778,3883.6,3882.8,0.754]
[1734269451797,2.57494,3883.6,3882.8,0.754]
[1734269452013,0.23964473,3883.5,3882.9,0.02370555]
[1734269452220,0.23964473,3883.4,3882.9,0.02370555]
[1734269452517,0.78964473,3883.3,3882.9,0.02370555]
[1734269452671,0.23964473,3883.2,3882.9,0.02370555]
[1734269452876,0.23964473,3883.1,3882.8,0.754]
[1734269453093,0.23964473,3883.0,3882.9,0.02370555]
[1734269453314,0.23964473,3883.5,3882.9,0.02370555]
[1734269453514,0.23964473,3883.4,3882.9,0.02370555]
[1734269453677,0.23964473,3883.3,3883.0,0.7904]
[1734269453872,0.23964473,3883.2,3883.0,0.7904]
[1734269454079,0.23964473,3883.1,3883.0,0.7904]
[1734269455252,0.23964473,3883.1,3883.0,0.81432688]
[1734269455509,3.39786,3884.0,3883.0,1.15331057]
[1734269455510,0.78987208,3883.8,3883.0,1.15331057]
[1734269455746,0.23987208,3883.7,3883.0,0.81432688]
[1734269455941,0.23987208,3883.6,3883.0,0.81432688]
[1734269456131,0.55,3883.8,3883.0,0.81432688]
[1734269456132,0.23987208,3883.5,3883.0,0.81432688]
[1734269456450,0.23987208,3883.4,3883.0,0.81432688]
[1734269456646,0.23987208,3883.3,3883.0,0.81432688]
[1734269456846,0.55,3883.8,3883.0,1.15331157]
[1734269457058,3.55,3884.2,3883.1,0.7904]
[1734269457367,3.55,3884.2,3883.2,0.02409722]
[1734269457368,2.57469,3884.0,3883.2,0.02409722]
[1734269458152,3.55,3884.1,3883.3,0.7904]
[1734269458507,3.55,3884.1,3883.4,0.02400477]
[1734269458944,6.12461,3884.1,3883.4,0.02400477]
[1734269459941,6.12461,3884.1,3883.3,0.7904]
[1734269460615,2.57482,3883.8,3883.3,0.7904]
[1734269460823,2.57487,3883.7,3883.3,0.7904]
[1734269461962,0.8232,3883.9,3883.3,0.7904]
[1734269461963,0.55,3883.8,3883.3,0.7904]
[1734269462664,0.55,3884.0,3883.3,0.7904]
[1734269462824,0.55,3884.0,3882.5,0.7904]
[1734269463025,0.8232,3883.9,3882.6,0.02440964]
[1734269463268,2.57508,3883.4,3882.6,0.02440964]
[1734269463466,2.57514,3883.3,3882.6,0.02440964]
[1734269463653,2.57521,3883.2,3882.6,0.02440964]
[1734269464047,1.3732,3883.1,3882.6,0.02440964]
[1734269464223,1.3732,3883.1,3882.5,0.7904]
[1734269464858,1.3732,3883.1,3881.6,0.7904]
[1734269465024,1.3732,3883.1,3881.7,0.81528245]
[1734269465226,4.3732,3883.1,3881.7,0.81528245]
[1734269465539,2.57573,3882.4,3881.7,0.81528245]
[1734269466369,2.57587,3882.2,3881.7,0.81528245]
[1734269466852,2.57587,3882.2,3881.7,0.7904]
[1734269467177,2.57571,3882.5,3881.8,0.02477477]
[1734269467469,2.57573,3882.4,3881.8,0.02477477]
[1734269467654,2.57566,3882.5,3881.7,0.7904]
[1734269467862,0.8232,3882.8,3881.8,0.02477477]
[1734269468172,0.257521,3882.7,3881.7,0.7904]
[1734269468341,2.57589,3882.2,3881.7,0.7904]
[1734269468528,2.57566,3882.5,3881.7,0.7904]
[1734269468729,2.57593,3882.1,3881.7,0.7904]
[1734269468923,0.257521,3882.7,3881.7,0.7904]
[1734269468924,4.33497462,3882.7,3881.7,0.7904]
[1734269469129,2.57581,3882.3,3881.7,0.7904]
[1734269469769,3.0,3882.5,3881.7,0.7904]
[1734269469989,2.57567,3882.5,3881.7,0.7904]
[1734269470480,0.26859505,3882.6,3881.7,0.7904]
[1734269470686,0.8232,3882.8,3881.7,0.7904]
[1734269470981,0.8232,3882.8,3881.8,0.02477477]
[1734269471283,0.8232,3882.8,3881.7,0.7904]
[1734269471431,2.5756,3882.6,3881.7,0.7904]
[1734269471638,2.57543,3882.9,3881.7,0.7904]
[1734269471892,3.8232,3883.1,3880.8,3.0]
[1734269471893,2.57554,3882.7,3881.9,0.7904]
[1734269473071,2.57538,3883.0,3881.9,0.7904]
[1734269473393,2.57519,3883.2,3881.9,0.7904]
[1734269473604,0.8136,3883.4,3881.9,0.7904]
[1734269473797,3.65250362,3883.5,3882.3,0.7569]
[1734269473798,2.57505,3883.5,3882.3,0.7569]
[1734269473976,2.57505,3883.5,3882.4,0.7569]
[1734269474184,2.57505,3883.5,3882.4,0.78139726]
[1734269474695,2.40767322,3883.8,3882.4,0.7569]
[1734269474696,1.3302196,3883.8,3882.4,0.7569]
[1734269474852,3.0914596,3883.8,3882.5,2.57565]
[1734269475052,1.07745362,3883.9,3882.6,0.78160591]
[1734269475300,2.57486,3883.7,3882.6,0.78160591]
[1734269475453,2.57494,3883.6,3882.6,0.78160591]
[1734269475653,0.8136,3883.8,3882.6,0.78160591]
[1734269475892,2.57508,3883.4,3882.6,0.78160591]
[1734269476295,1.89105362,3883.8,3882.6,0.78160591]
[1734269476296,2.57493,3883.6,3882.6,0.78160591]
[1734269476454,2.57493,3883.6,3882.6,0.7569]
[1734269476656,0.8136,3883.8,3882.6,0.7569]
[1734269476855,2.57507,3883.4,3882.6,0.7569]
[1734269477085,2.57507,3883.4,3882.7,0.02465967]
[1734269477270,0.18910536,3883.7,3882.7,0.02465967]
[1734269477711,2.57541,3882.9,3882.6,0.7569]
[1734269478006,2.57541,3882.9,3881.6,0.7569]
[1734269478161,2.57541,3882.9,3881.8,0.7569]
[1734269478613,2.57541,3882.9,3881.9,0.02502965]
[1734269478826,0.8136,3883.1,3882.0,0.7569]
[1734269478961,3.0,3883.1,3882.0,0.7569]
[1734269479706,2.57525,3883.2,3882.1,0.02493714]
[1734269480004,1.07745362,3883.4,3882.2,0.7569]
[1734269480177,2.57559,3882.6,3882.2,0.7569]
[1734269480560,0.8136,3882.9,3882.2,0.7569]
[1734269480803,2.57576,3882.4,3881.3,0.7569]
[1734269481167,2.57576,3882.4,3880.7,1.07496429]
[1734269481168,2.57576,3882.4,3881.4,0.02526096]
[1734269481367,2.57576,3882.4,3881.5,0.7569]
[1734269481799,0.257576,3882.4,3881.5,0.7569]
[1734269481977,2.576,3882.0,3881.5,0.7569]
[1734269482387,2.576,3882.0,3881.6,0.02516843]
[1734269482702,2.576,3882.0,3881.5,0.7569]
[1734269483162,2.576,3882.0,3881.6,0.02516843]
[1734269483596,2.57592,3882.1,3880.9,0.7569]
[1734269483911,2.57592,3882.1,3881.0,0.02544606]
[1734269484118,2.57592,3882.1,3881.1,0.7569]
[1734269484403,2.57592,3882.1,3881.1,0.78229978]
[1734269485579,2.57603,3882.0,3881.1,0.78229978]
[1734269486578,2.57613,3881.8,3881.1,0.78229978]
[1734269487011,2.57621,3881.7,3881.1,0.78229978]
[1734269488440,3.38945,3882.2,3881.1,0.78229978]
[1734269488569,2.57593,3882.1,3881.1,0.78229978]
[1734269489010,2.57593,3882.1,3881.1,0.7569]
[1734269489384,2.57593,3882.1,3881.3,0.7569]
[1734269489718,1.89105362,3882.5,3881.3,0.7569]
[1734269489719,2.57579,3882.3,3881.3,0.7569]
[1734269490173,2.57589,3882.2,3881.3,0.7569]
[1734269490572,2.57589,3882.2,3881.4,0.02565306]
[1734269491071,2.57589,3882.2,3881.5,0.7569]
[1734269491373,2.57589,3882.2,3881.5,0.78250679]
[1734269492325,2.57566,3882.5,3881.5,0.78250679]
[1734269492530,2.1306358,3882.9,3881.5,0.78250679]
[1734269492531,0.8136,3882.8,3881.5,0.7569]
[1734269492838,2.57555,3882.7,3881.6,0.7569]
[1734269493139,4.46642362,3883.0,3881.7,0.02615011]
[1734269493343,4.16741266,3883.3,3882.0,0.7891]
[1734269493638,3.08995904,3883.3,3882.1,3.36499]
[1734269493839,3.08995904,3883.3,3882.2,0.7891]
[1734269494138,3.08995904,3883.3,3882.3,0.7891]
[1734269494342,3.08995904,3883.3,3882.3,0.81481]
[1734269495641,3.0,3883.5,3882.3,0.81481]
[1734269495946,3.0,3883.5,3882.4,0.7891]
[1734269496152,1.07745362,3884.0,3882.5,0.7891]
[1734269496441,1.07745362,3884.2,3882.7,0.7891]
[1734269496624,2.57453,3884.2,3883.0,2.57532]
[1734269496795,2.57453,3884.2,3883.1,0.7891]
[1734269497000,2.57453,3884.2,3883.1,0.81421539]
[1734269497597,1.07745362,3884.4,3883.2,0.7891]
[1734269497802,3.0,3884.4,3883.2,2.57517]
[1734269498002,3.0,3884.4,3883.3,0.81326501]
[1734269498535,3.0,3884.4,3883.3,0.7891]
[1734269499103,2.5744,3884.4,3883.3,0.7891]
[1734269499327,3.0,3884.3,3883.3,0.7891]
[1734269500059,3.0,3884.5,3883.4,0.02398019]
[1734269500231,3.0,3884.5,3883.5,0.7891]
[1734269500599,1.07745362,3884.7,3883.5,0.7891]
[1734269500824,1.07745362,3884.8,3883.7,0.7891]
[1734269501026,2.57432,3884.6,3883.7,0.7891]
[1734269501403,2.57432,3884.6,3883.8,0.02365676]
[1734269501605,2.57432,3884.6,3883.7,0.7891]
[1734269501806,2.57435,3884.5,3883.7,0.7891]
[1734269503805,1.07745362,3884.8,3883.7,0.7891]
[1734269503806,3.0,3884.7,3883.7,0.7891]
[1734269504552,1.60531179,3884.9,3883.9,0.7891]
[1734269504747,2.57427,3884.6,3883.9,0.7891]
[1734269504960,0.52785817,3884.9,3883.9,0.7891]
[1734269505160,2.57435,3884.5,3883.9,0.7891]
[1734269505677,2.57453,3884.2,3883.9,0.7891]
[1734269505811,2.57465,3884.1,3883.0,0.7891]
[1734269506212,2.57465,3884.1,3883.1,0.0256829]
[1734269506517,2.57465,3884.1,3883.2,0.7891]
[1734269506957,2.57465,3884.1,3883.3,0.02387827]
[1734269507856,2.57468,3884.0,3883.3,0.02387827]
[1734269508019,0.7802,3884.3,3883.3,0.02387827]
[1734269508218,2.57455,3884.2,3883.3,0.02387827]
[1734269508415,2.57461,3884.1,3883.2,0.7891]
[1734269509065,3.0,3884.5,3883.2,0.7891]
[1734269509066,2.57442,3884.4,3883.2,0.7891]
[1734269509232,2.57447,3884.3,3883.2,0.7891]
[1734269509770,2.57447,3884.3,3883.3,0.812725]
[1734269510269,2.57447,3884.3,3883.3,0.7891]
[1734269510864,0.7802,3884.6,3883.3,0.7891]
[1734269511158,1.85765362,3884.6,3883.3,0.7891]
[1734269511317,2.57494,3883.6,3883.3,0.7891]
[1734269511495,2.57448,3884.3,3883.3,0.7891]
[1734269511496,2.57503,3883.5,3883.3,0.7891]
[1734269511700,0.7802,3884.1,3882.3,0.7891]
[1734269511872,2.57519,3883.2,3882.3,0.7891]
[1734269512190,2.57519,3883.2,3882.4,0.02404107]
[1734269513472,2.57519,3883.2,3882.3,0.7891]
[1734269515221,2.57528,3883.1,3882.3,0.7891]
[1734269515374,2.57535,3883.0,3882.3,0.7891]
[1734269515577,2.5754,3882.9,3882.3,0.7891]
[1734269515801,2.5754,3882.9,3882.4,0.02404107]
[1734269516015,2.5754,3882.9,3882.3,0.7891]
[1734269516811,2.57545,3882.9,3882.3,0.7891]
[1734269517018,2.57519,3883.2,3882.3,0.7891]
[1734269517219,2.57515,3883.3,3882.3,0.7891]
[1734269517220,0.55,3883.3,3882.3,0.7891]
[1734269517386,2.57558,3882.7,3882.3,0.7891]
[1734269520486,1.07745362,3883.5,3882.3,0.7891]
[1734269520487,2.57531,3883.1,3882.3,0.7891]
[1734269520681,2.5751,3883.4,3882.3,0.7891]
[1734269521184,2.57514,3883.3,3882.3,0.7891]
[1734269521420,2.57514,3883.3,3882.4,0.02527553]
[1734269521624,1.07745362,3883.9,3882.7,0.8191]
[1734269521783,0.7566,3884.1,3882.8,2.57546]
[1734269521983,2.57459,3884.1,3882.9,2.57539]
[1734269522187,2.57459,3884.1,3883.1,0.8191]
[1734269522431,3.65191362,3884.3,3883.1,0.8191]
[1734269522757,1.07745362,3884.5,3883.2,0.02467973]
[1734269523050,2.5743,3884.6,3883.3,0.8191]
[1734269523550,2.5743,3884.6,3883.5,0.8002]
[1734269523963,1.07745362,3885.1,3883.6,0.02411249]
[1734269524254,2.57422,3884.7,3883.6,0.02411249]
[1734269524643,2.57422,3884.7,3883.7,0.8002]
[1734269525153,2.57422,3884.7,3883.8,0.02404637]
[1734269527003,3.0,3884.9,3883.9,0.8002]
[1734269527004,2.57414,3884.8,3883.9,0.8002]
[1734269527451,2.57414,3884.8,3884.0,0.02546018]
[1734269527655,2.57414,3884.8,3883.9,0.8002]
[1734269527857,2.57414,3884.8,3884.1,0.02371663]
[1734269528068,2.57414,3884.8,3884.0,0.02376284]
[1734269528208,2.57414,3884.8,3884.2,0.02367044]
[1734269528514,2.57414,3884.8,3884.3,0.02362424]
[1734269528903,2.57414,3884.8,3883.9,0.8002]
[1734269529347,2.57414,3884.8,3884.0,0.02376284]
[1734269529503,3.0,3885.0,3884.0,0.02376284]
[1734269529707,1.61618043,3885.3,3884.1,0.8002]
[1734269529708,3.65126362,3885.3,3884.1,0.8002]
[1734269529929,2.57381,3885.3,3884.1,0.8002]
[1734269530546,2.57381,3885.3,3884.2,0.8002]
[1734269531123,2.57396,3885.1,3884.2,0.8002]
[1734269531323,1.07745362,3885.4,3884.2,0.8002]
[1734269531529,2.57397,3885.1,3884.2,0.8002]
[1734269533435,1.07745362,3885.4,3884.2,0.8002]
[1734269533774,2.57402,3885.0,3884.2,0.8002]
[1734269534679,2.57393,3885.1,3884.2,0.8002]
[1734269534978,2.57418,3884.8,3884.2,0.8002]
[1734269535127,1.07745362,3885.2,3884.2,0.8002]
[1734269535329,3.65124362,3885.4,3884.2,0.8002]
[1734269535585,1.26466378,3885.3,3884.2,0.8002]
[1734269535730,1.07745362,3885.3,3884.2,0.8002]
[1734269536261,1.07745362,3885.4,3884.3,0.7808]
[1734269536583,2.57369,3885.5,3884.3,0.7808]
[1734269536584,3.65114362,3885.5,3884.3,0.7808]
[1734269536729,3.83873853,3885.4,3884.3,0.7808]
[1734269536925,2.57378,3885.4,3884.3,0.7808]
[1734269537346,1.07745362,3885.5,3884.3,0.7808]
[1734269537347,1.07745362,3885.5,3884.5,0.7808]
[1734269537633,1.07745362,3885.6,3884.6,0.7808]
[1734269538062,3.65101362,3885.7,3884.6,0.7808]
[1734269538392,1.2648882,3885.6,3884.6,0.7808]
[1734269538552,3.65101362,3885.7,3884.6,0.7808]
[1734269538748,3.8386342,3885.6,3884.6,1.116319]
[1734269538967,1.26502366,3885.5,3884.6,1.116319]
[1734269539179,1.07745362,3885.6,3884.7,0.7808]
[1734269539384,2.57381,3885.3,3884.7,0.7808]
[1734269540536,1.07745362,3885.4,3884.7,0.7808]
[1734269540731,2.5739,3885.2,3884.7,0.7808]
[1734269542351,3.65120362,3885.4,3884.7,0.7808]
[1734269542556,2.57375,3885.4,3884.7,0.7808]
[1734269543140,1.07745362,3885.5,3884.7,0.7808]
[1734269543398,6.65106362,3885.6,3884.7,0.7808]
[1734269543560,2.57376,3885.4,3884.7,0.7808]
[1734269546608,3.0,3885.5,3884.7,0.7808]
[1734269546810,2.57374,3885.4,3884.7,0.7808]
[1734269547011,2.5738,3885.3,3884.7,0.7808]
[1734269549105,2.57392,3885.2,3884.7,0.7808]
[1734269549317,2.574,3885.0,3884.7,0.7808]
[1734269551723,2.57381,3885.3,3884.7,0.7808]
[1734269552070,2.5739,3885.2,3884.7,0.7808]
[1734269554279,0.25739,3885.2,3884.7,0.7808]
[1734269554484,1.07745362,3885.8,3884.7,0.7808]
[1734269554485,2.57407,3884.9,3884.7,0.7808]
[1734269554681,2.57413,3884.8,3883.7,0.8053]
[1734269554880,2.57413,3884.8,3883.8,0.03389207]
[1734269555129,1.87355362,3885.3,3883.9,0.8053]
[1734269555330,2.57433,3884.5,3883.9,0.83912275]
[1734269555739,2.57433,3884.5,3883.9,0.8053]
[1734269556048,2.57433,3884.5,3884.0,0.03068495]
[1734269556534,2.57123066,3884.5,3884.0,0.03068495]
[1734269558219,2.57418,3884.8,3884.0,0.03068495]
[1734269558384,2.57393,3885.1,3884.0,0.03068495]
[1734269558385,2.5742,3884.7,3884.1,0.8053]
[1734269559119,2.5742,3884.7,3884.2,0.03065664]